fUST/lending_fUST_20250915
["ID","MTS","AMOUNT","RATE_DAILY","PERIOD"]
[385547255,1757891432528,-485.6,0.00021917,2]
[385547257,1757891432537,-1708.87,0.00021917,2]
[385547259,1757891432546,-480.0,0.00021917,2]
[385547261,1757891432555,-511.78,0.00021917,2]
[385547263,1757891432564,-480.0,0.00021917,2]
[385547265,1757891432573,-480.0,0.00021917,2]
[385547267,1757891432583,-480.0,0.00021917,2]
[385547269,1757891432591,-2337.4,0.00021917,2]
[385547271,1757891432600,-480.0,0.00021917,2]
[385547272,1757891432609,-480.0,0.00021917,2]
[385547274,1757891432618,-480.0,0.00021917,2]
[385547276,1757891432627,-499.26,0.00021917,2]
[385547278,1757891432637,-1179.35,0.00021917,2]
[385547280,1757891432646,-973.08,0.00021917,2]
[385547282,1757891432655,-573.0,0.00021917,2]
[385547284,1757891432664,-289.1509064,0.00021917,2]
[385547286,1757891432675,-480.0,0.00021917,2]
[385547288,1757891432685,-480.0,0.00021917,2]
[385547290,1757891432694,-480.0,0.00021917,2]
[385547292,1757891432703,-480.0,0.00021917,2]
[385547294,1757891432712,-1642.22,0.00021917,2]
[385547296,1757891432721,-300.0,0.00021917,2]
[385547297,1757891432730,-480.0,0.00021917,2]
[385547299,1757891432739,-480.0,0.00021917,2]
[385547301,1757891432750,-652.97,0.00021917,2]
[385547303,1757891432759,-480.0,0.00021917,2]
[385547305,1757891432768,-542.28,0.00021917,2]
[385547324,1757891432911,-9585.64,0.00021917,2]
[385547326,1757891432955,-480.0,0.00021917,2]
[385547328,1757891432965,-480.0,0.00021917,2]
[385547330,1757891432974,-503.74,0.00021917,2]
[385547332,1757891432983,-217.77739939,0.00021917,2]
[385547334,1757891432992,-847.27885267,0.00021917,2]
[385547336,1757891433002,-480.0,0.00021917,2]
[385547338,1757891433011,-782.94,0.00021917,2]
[385547340,1757891433021,-1169.6,0.00021917,2]
[385547342,1757891433030,-524.75,0.00021917,2]
[385547344,1757891433039,-480.0,0.00021917,2]
[385547346,1757891433048,-1013.79,0.00021917,2]
[385547348,1757891433058,-582.168552,0.00021917,2]
[385547350,1757891433068,-480.0,0.00021917,2]
[385547352,1757891433076,-159.56046804,0.00021917,2]
[385547354,1757891433085,-1279.88,0.00021917,2]
[385547355,1757891433094,-480.0,0.00021917,2]
[385547357,1757891433106,-642.08,0.0002199,10]
[385547359,1757891433115,-1002.5,0.0002199,10]
[385547361,1757891433124,-835.42,0.0002199,10]
[385547363,1757891433134,-13093.54175498,0.00022,3]
[385547819,1757891438259,-217.77739939,0.00021917,2]
[385547821,1757891438268,-582.0,0.00021917,2]
[385547823,1757891438277,-480.0,0.00021917,2]
[385547825,1757891438287,-2652.59408693,0.00022,3]
[385547827,1757891438302,-1516.39,0.00022,3]
[385547829,1757891438313,-962.8999974,0.00022,3]
[385547831,1757891438324,-11774.57416069,0.00022,3]
[385547833,1757891438335,-431.43,0.00022,2]
[385547835,1757891438344,-648.27878343,0.00022153,2]
[385547837,1757891438353,-500.0,0.00022173,2]
[385547839,1757891438363,-696.18,0.00022181,10]
[385547841,1757891438373,-300.49685021,0.0002219,2]
[385547843,1757891438383,-480.0,0.00022191,3]
[385547845,1757891438392,-480.0,0.00022191,3]
[385547847,1757891438401,-480.0,0.00022191,3]
[385547849,1757891438410,-480.0,0.00022191,3]
[385547851,1757891438419,-480.0,0.00022191,3]
[385547853,1757891438429,-480.0,0.00022191,3]
[385547855,1757891438438,-480.0,0.00022191,3]
[385547857,1757891438447,-480.0,0.00022191,3]
[385547859,1757891438457,-480.0,0.00022191,3]
[385547861,1757891438468,-614.91,0.00022191,3]
[385547863,1757891438477,-480.0,0.00022191,3]
[385547865,1757891438486,-480.0,0.00022191,3]
[385547867,1757891438495,-480.0,0.00022191,3]
[385547869,1757891438504,-630.26,0.00022191,3]
[385547871,1757891438514,-480.0,0.00022191,3]
[385547873,1757891438525,-480.0,0.00022191,3]
[385547876,1757891438535,-480.0,0.00022191,3]
[385547877,1757891438544,-480.0,0.00022191,3]
[385547879,1757891438554,-480.0,0.00022191,3]
[385547881,1757891438563,-480.0,0.00022191,3]
[385547883,1757891438572,-480.0,0.00022191,3]
[385547885,1757891438582,-480.0,0.00022191,3]
[385547887,1757891438591,-480.0,0.00022191,3]
[385547890,1757891438601,-724.03,0.00022191,3]
[385547892,1757891438611,-480.0,0.00022191,3]
[385547894,1757891438620,-480.0,0.00022191,3]
[385547896,1757891438629,-480.0,0.00022191,3]
[385547898,1757891438639,-518.41,0.00022191,3]
[385547900,1757891438648,-480.0,0.00022191,3]
[385547902,1757891438657,-480.0,0.00022191,3]
[385547904,1757891438666,-522.84,0.00022191,3]
[385547906,1757891438675,-691.56,0.00022191,3]
[385547908,1757891438684,-3031.84,0.00022191,3]
[385547910,1757891438693,-485.86,0.00022191,3]
[385547912,1757891438702,-845.57,0.00022191,3]
[385547914,1757891438711,-5866.11,0.00022191,3]
[385547916,1757891438720,-1649.82,0.00022191,3]
[385547918,1757891438730,-480.0,0.00022191,3]
[385547920,1757891438741,-1080.29,0.00022191,3]
[385547922,1757891438750,-385.63264023,0.00022191,3]
[385548059,1757891440033,-133.60735977,0.00022191,3]
[385548061,1757891440046,-480.0,0.00022191,3]
[385548063,1757891440057,-292.39264023,0.00022191,3]
[385548396,1757891443386,162.87046,0.00024,30]
[385548441,1757891444095,-990.27,0.00021917,2]
[385548442,1757891444104,-480.0,0.00021917,2]
[385548443,1757891444114,-480.0,0.00021917,2]
[385548444,1757891444125,-653.65735977,0.00022191,3]
[385548447,1757891444136,-480.0,0.00022191,3]
[385548449,1757891444146,-480.0,0.00022191,3]
[385548451,1757891444157,-480.0,0.00022191,3]
[385548453,1757891444168,-2895.72,0.00022191,3]
[385548455,1757891444178,-480.0,0.00022191,3]
[385548457,1757891444188,-513.29,0.00022191,3]
[385548460,1757891444200,-492.66,0.00022191,3]
[385548462,1757891444209,-1196.74,0.00022191,3]
[385548464,1757891444219,-480.0,0.00022191,3]
[385548466,1757891444230,-1280.47,0.00022191,3]
[385548468,1757891444240,-485.6,0.00022191,3]
[385548470,1757891444250,-1708.87,0.00022191,3]
[385548472,1757891444260,-480.0,0.00022191,3]
[385548474,1757891444270,-511.78,0.00022191,3]
[385548476,1757891444281,-480.0,0.00022191,3]
[385548478,1757891444292,-480.0,0.00022191,3]
[385548481,1757891444305,-480.0,0.00022191,3]
[385548483,1757891444315,-2337.4,0.00022191,3]
[385548485,1757891444326,-480.0,0.00022191,3]
[385548487,1757891444336,-480.0,0.00022191,3]
[385548489,1757891444346,-480.0,0.00022191,3]
[385548491,1757891444356,-499.26,0.00022191,3]
[385548493,1757891444366,-1179.35,0.00022191,3]
[385548495,1757891444376,-973.08,0.00022191,3]
[385548497,1757891444387,-573.0,0.00022191,3]
[385548499,1757891444397,-480.0,0.00022191,3]
[385548502,1757891444407,-480.0,0.00022191,3]
[385548504,1757891444417,-480.0,0.00022191,3]
[385548506,1757891444427,-480.0,0.00022191,3]
[385548508,1757891444437,-1642.22,0.00022191,3]
[385548510,1757891444448,-346.04484558,0.00022191,2]
[385548512,1757891444458,-480.0,0.00022191,3]
[385548514,1757891444468,-480.0,0.00022191,3]
[385548516,1757891444478,-652.97,0.00022191,3]
[385548518,1757891444487,-480.0,0.00022191,3]
[385548520,1757891444498,-542.28,0.00022191,3]
[385548522,1757891444508,-9585.64,0.00022191,3]
[385548524,1757891444519,-480.0,0.00022191,3]
[385548526,1757891444530,-480.0,0.00022191,3]
[385548529,1757891444541,-503.74,0.00022191,3]
[385548531,1757891444551,-528.30821025,0.00022191,3]
[385548533,1757891444561,-782.94,0.00022191,3]
[385548535,1757891444571,-1169.6,0.00022191,3]
[385548537,1757891444581,-524.75,0.00022191,3]
[385548539,1757891444591,-480.0,0.00022191,3]
[385548541,1757891444601,-1013.79,0.00022191,3]
[385548543,1757891444611,-151.0,0.00022191,7]
[385548545,1757891444622,-480.0,0.00022191,3]
[385548547,1757891444632,-559.9801332,0.00022191,3]
[385548705,1757891446144,-375.17554762,0.00021917,2]
[385548707,1757891446157,-104.82445238,0.00021917,2]
[385548709,1757891446167,-719.8998668,0.00022191,3]
[385548712,1757891446178,-480.0,0.00022191,3]
[385548714,1757891446188,-582.0,0.00022191,3]
[385548716,1757891446197,-480.0,0.00022191,3]
[385548718,1757891446206,-990.27,0.00022191,3]
[385548720,1757891446215,-480.0,0.00022191,3]
[385548722,1757891446226,-480.0,0.00022191,3]
[385548723,1757891446241,-153.0,0.000222,2]
[385548726,1757891446251,-153.0,0.000222,2]
[385548728,1757891446261,-153.0,0.000222,2]
[385548730,1757891446271,-82.60568082,0.000222,2]
[385552648,1757891496613,157.529894,0.00024,30]
[385552653,1757891595157,1315.69163893,0.000199,2]
[385552669,1757891783626,1271.83525084,0.000199,2]
[385552671,1757891971838,1229.44074244,0.000199,2]
[385552674,1757892188030,984.30340939,0.000199,2]
[385552675,1757892264424,1000.0,0.0002,7]
[385552679,1757892345145,-984.30340933,0.00021149,2]
[385552680,1757892345167,-168.0,0.00021462,2]
[385552681,1757892345187,-319.33484714,0.00021778,2]
[385552682,1757892345207,-160.0,0.00021911,2]
[385552683,1757892345227,-160.0,0.00021911,2]
[385552684,1757892345247,-155.0,0.00021916,2]
[385552685,1757892345268,-300.0,0.00021916,2]
[385552686,1757892345288,-300.0,0.00021916,2]
[385552687,1757892345309,-304.0,0.00021916,2]
[385552688,1757892345330,-847.27885267,0.00021917,2]
[385552689,1757892345350,-233.1999649,0.00021917,2]
[385552690,1757892345370,-160.0,0.00021917,2]
[385552691,1757892345391,-160.0,0.00021917,2]
[385552692,1757892345411,-217.77739939,0.00021917,2]
[385552693,1757892345432,-11755.28150396,0.00021917,2]
[385552694,1757892345451,-480.0,0.00021917,2]
[385552695,1757892345472,-480.0,0.00021917,2]
[385552696,1757892345495,-480.0,0.00021917,2]
[385552697,1757892345517,-480.0,0.00021917,2]
[385552698,1757892345538,-480.0,0.00021917,2]
[385552699,1757892345558,-480.0,0.00021917,2]
[385552700,1757892345580,-594.82795512,0.00021917,2]
[385552701,1757892345600,-480.0,0.00021917,2]
[385552702,1757892345620,-480.0,0.00021917,2]
[385552703,1757892345640,-480.0,0.00021917,2]
[385552704,1757892345661,-480.0,0.00021917,2]
[385552705,1757892345681,-480.0,0.00021917,2]
[385552706,1757892345702,-480.0,0.00021917,2]
[385552707,1757892345723,-480.0,0.00021917,2]
[385552708,1757892345744,-480.0,0.00021917,2]
[385552709,1757892345765,-480.0,0.00021917,2]
[385552710,1757892345785,-480.0,0.00021917,2]
[385552711,1757892345806,-480.0,0.00021917,2]
[385552712,1757892345829,-563.67,0.00021917,2]
[385552713,1757892345850,-480.0,0.00021917,2]
[385552714,1757892345872,-480.08168787,0.00021917,2]
[385552715,1757892345894,-480.0,0.00021917,2]
[385552716,1757892345914,-480.0,0.00021917,2]
[385552717,1757892345935,-480.0,0.00021917,2]
[385552718,1757892345956,-577.74,0.00021917,2]
[385552719,1757892345976,-480.0,0.00021917,2]
[385552720,1757892345998,-480.0,0.00021917,2]
[385552721,1757892346019,-480.0,0.00021917,2]
[385552722,1757892346039,-480.0,0.00021917,2]
[385552723,1757892346061,-480.0,0.00021917,2]
[385552724,1757892346083,-5377.27,0.00021917,2]
[385552725,1757892346105,-533.5,0.00021917,2]
[385552726,1757892346131,-480.0,0.00021917,2]
[385552727,1757892346152,-480.0,0.00021917,2]
[385552728,1757892346173,-480.0,0.00021917,2]
[385552729,1757892346194,-480.0,0.00021917,2]
[385552730,1757892346215,-480.0,0.00021917,2]
[385552731,1757892346236,-867.21,0.00021917,2]
[385552732,1757892346256,-633.93,0.00021917,2]
[385552733,1757892346278,-775.11,0.00021917,2]
[385552734,1757892346300,-2779.18,0.00021917,2]
[385552735,1757892346321,-2654.41,0.00021917,2]
[385552736,1757892346342,-480.0,0.00021917,2]
[385552737,1757892346363,-1512.34,0.00021917,2]
[385552738,1757892346382,-450.90714205,0.00021917,2]
[385552739,1757892346403,-1097.01,0.00021917,2]
[385552740,1757892346424,-1081.07,0.00021917,2]
[385552741,1757892346444,-480.0,0.00021917,2]
[385552742,1757892346464,-2142.62,0.00021917,2]
[385552743,1757892346484,-480.0,0.00021917,2]
[385552744,1757892346504,-480.0,0.00021917,2]
[385552745,1757892346524,-480.0,0.00021917,2]
[385552746,1757892346545,-480.0,0.00021917,2]
[385552747,1757892346566,-663.69,0.00021917,2]
[385552748,1757892346586,-299.07256411,0.00021917,2]
[385552749,1757892346608,-480.0,0.00021917,2]
[385552750,1757892346629,-1173.77,0.00021917,2]
[385552751,1757892346649,-480.0,0.00021917,2]
[385552752,1757892346669,-480.0,0.00021917,2]
[385552753,1757892346690,-1566.47,0.00021917,2]
[385552754,1757892346712,-480.0,0.00021917,2]
[385552755,1757892346732,-480.0,0.00021917,2]
[385552756,1757892346753,-480.0,0.00021917,2]
[385552757,1757892346939,-480.0,0.00021917,2]
[385552758,1757892346960,-891.99,0.00021917,2]
[385552759,1757892346981,-480.0,0.00021917,2]
[385552760,1757892347001,-1505.37,0.00021917,2]
[385552761,1757892347023,-8786.84,0.00021917,2]
[385552762,1757892347044,-480.0,0.00021917,2]
[385552763,1757892347069,-480.0,0.00021917,2]
[385552764,1757892347090,-480.0,0.00021917,2]
[385552765,1757892347111,-525.25,0.00021917,2]
[385552766,1757892347132,-481.02,0.00021917,2]
[385552767,1757892347152,-480.0,0.00021917,2]
[385552768,1757892347172,-480.0,0.00021917,2]
[385552769,1757892347192,-480.0,0.00021917,2]
[385552770,1757892347213,-480.0,0.00021917,2]
[385552771,1757892347234,-480.0,0.00021917,2]
[385552772,1757892347255,-480.0,0.00021917,2]
[385552773,1757892347274,-480.0,0.00021917,2]
[385552774,1757892347293,-480.0,0.00021917,2]
[385552775,1757892347315,-480.0,0.00021917,2]
[385552776,1757892347335,-573.61,0.00021917,2]
[385552777,1757892347355,-907.74,0.00021917,2]
[385552778,1757892347376,-497.09,0.00021917,2]
[385552779,1757892347396,-1072.13,0.00021917,2]
[385552780,1757892347416,-1173.22,0.00021917,2]
[385552781,1757892347436,-717.7,0.00021917,2]
[385552782,1757892347458,-929.31,0.00021917,2]
[385552783,1757892347478,-480.0,0.00021917,2]
[385552784,1757892347499,-480.0,0.00021917,2]
[385552785,1757892347520,-480.0,0.00021917,2]
[385552786,1757892347540,-480.0,0.00021917,2]
[385552787,1757892347559,-480.0,0.00021917,2]
[385552788,1757892347583,-480.0,0.00021917,2]
[385552789,1757892347606,-168.0,0.00021931,2]
[385552790,1757892347626,-500.0,0.00021973,2]
[385552791,1757892347644,-500.0,0.00021973,2]
[385552792,1757892347666,-383.49,0.00022,2]
[385552793,1757892347687,-388.96727009,0.00022091,2]
[385552794,1757892347708,-432.43,0.00022181,10]
[385552795,1757892347728,-508.08,0.00022181,10]
[385552796,1757892347749,-423.4,0.00022181,10]
[385552797,1757892347774,-1824.4144157,0.00022188,2]
[385552798,1757892347795,-480.0,0.00022191,3]
[385552799,1757892347817,-480.0,0.00022191,3]
[385552800,1757892347842,-480.0,0.00022191,3]
[385552801,1757892347871,-480.0,0.00022191,3]
[385552802,1757892347894,-480.0,0.00022191,3]
[385552803,1757892347915,-480.0,0.00022191,3]
[385552804,1757892347936,-480.0,0.00022191,3]
[385552805,1757892347958,-480.0,0.00022191,3]
[385552806,1757892347979,-480.0,0.00022191,3]
[385552807,1757892348001,-480.0,0.00022191,3]
[385552808,1757892348021,-480.0,0.00022191,3]
[385552809,1757892348040,-480.0,0.00022191,3]
[385552810,1757892348062,-480.0,0.00022191,3]
[385552811,1757892348086,-480.0,0.00022191,3]
[385552812,1757892348108,-480.0,0.00022191,3]
[385552813,1757892348133,-480.0,0.00022191,3]
[385552814,1757892348155,-480.0,0.00022191,3]
[385552815,1757892348175,-563.67,0.00022191,3]
[385552816,1757892348195,-480.0,0.00022191,3]
[385552817,1757892348217,-480.0,0.00022191,3]
[385552818,1757892348238,-480.0,0.00022191,3]
[385552819,1757892348260,-480.0,0.00022191,3]
[385552820,1757892348280,-577.74,0.00022191,3]
[385552821,1757892348301,-480.0,0.00022191,3]
[385552822,1757892348324,-480.0,0.00022191,3]
[385552823,1757892348346,-389.81323173,0.00022191,3]
[385552824,1757892348369,-480.0,0.00022191,3]
[385552825,1757892348392,-480.0,0.00022191,3]
[385552826,1757892348414,-5377.27,0.00022191,3]
[385552827,1757892348435,-533.5,0.00022191,3]
[385552828,1757892348458,-480.0,0.00022191,3]
[385552829,1757892348480,-480.0,0.00022191,3]
[385552830,1757892348501,-480.0,0.00022191,3]
[385552831,1757892348522,-535.30475258,0.00022191,3]
[385552832,1757892348544,-480.0,0.00022191,3]
[385552833,1757892348569,-867.21,0.00022191,3]
[385552834,1757892348589,-633.93,0.00022191,3]
[385552835,1757892348611,-775.11,0.00022191,3]
[385552836,1757892348634,-2779.18,0.00022191,3]
[385552837,1757892348657,-2654.41,0.00022191,3]
[385552838,1757892348680,-480.0,0.00022191,3]
[385552839,1757892348709,-1512.34,0.00022191,3]
[385552840,1757892348737,-1097.01,0.00022191,3]
[385552841,1757892348765,-1081.07,0.00022191,3]
[385552842,1757892348789,-480.0,0.00022191,3]
[385552843,1757892348816,-2142.62,0.00022191,3]
[385552844,1757892348840,-480.0,0.00022191,3]
[385552845,1757892348867,-480.0,0.00022191,3]
[385552846,1757892348898,-480.0,0.00022191,3]
[385552847,1757892348989,-480.0,0.00022191,3]
[385552848,1757892349014,-663.69,0.00022191,3]
[385552849,1757892349041,-480.0,0.00022191,3]
[385552850,1757892349070,-1173.77,0.00022191,3]
[385552851,1757892349096,-480.0,0.00022191,3]
[385552852,1757892349125,-480.0,0.00022191,3]
[385552853,1757892349151,-1566.47,0.00022191,3]
[385552854,1757892349180,-480.0,0.00022191,3]
[385552855,1757892349207,-480.0,0.00022191,3]
[385552856,1757892349234,-480.0,0.00022191,3]
[385552857,1757892349258,-480.0,0.00022191,3]
[385552858,1757892349284,-891.99,0.00022191,3]
[385552859,1757892349310,-480.0,0.00022191,3]
[385552860,1757892349338,-1505.37,0.00022191,3]
[385552861,1757892349366,-8786.84,0.00022191,3]
[385552862,1757892349392,-480.0,0.00022191,3]
[385552863,1757892349419,-480.0,0.00022191,3]
[385552864,1757892349445,-480.0,0.00022191,3]
[385552865,1757892349472,-525.25,0.00022191,3]
[385552866,1757892349496,-481.02,0.00022191,3]
[385552867,1757892349519,-480.0,0.00022191,3]
[385552868,1757892349542,-480.0,0.00022191,3]
[385552869,1757892349567,-480.0,0.00022191,3]
[385552870,1757892349594,-480.0,0.00022191,3]
[385552871,1757892349618,-480.0,0.00022191,3]
[385552872,1757892349641,-480.0,0.00022191,3]
[385552873,1757892349665,-480.0,0.00022191,3]
[385552874,1757892349691,-480.0,0.00022191,3]
[385552875,1757892349716,-480.0,0.00022191,3]
[385552876,1757892349739,-573.61,0.00022191,3]
[385552877,1757892349764,-441.82312236,0.00022191,3]
[385552878,1757892350692,2881.22782943,0.0002739,120]
[385552879,1757892395507,378.4694382,0.000199,2]
[385552880,1757892395535,522.40447628,0.000199,2]
[385552881,1757892432091,-900.87391441,0.00021149,2]
[385552882,1757892432113,-300.0,0.00021916,2]
[385552883,1757892432138,-489.04,0.00021917,2]
[385552884,1757892432161,-794.94,0.00021917,2]
[385552885,1757892432182,-480.0,0.00021917,2]
[385552886,1757892432208,-480.0,0.00021917,2]
[385552887,1757892432230,-480.0,0.00021917,2]
[385552888,1757892432252,-480.0,0.00021917,2]
[385552889,1757892432275,-480.0,0.00021917,2]
[385552890,1757892432296,-581.11,0.00021917,2]
[385552891,1757892432317,-480.0,0.00021917,2]
[385552892,1757892432339,-990.98,0.00021917,2]
[385552893,1757892432361,-2433.21,0.00021917,2]
[385552894,1757892432382,-710.52,0.00021917,2]
[385552895,1757892432405,-480.0,0.00021917,2]
[385552896,1757892432426,-480.0,0.00021917,2]
[385552897,1757892432448,-1386.31,0.00021917,2]
[385552898,1757892432469,-1005.59,0.00021917,2]
[385552899,1757892432492,-2547.59,0.00021917,2]
[385552900,1757892432512,-480.0,0.00021917,2]
[385552901,1757892432534,-1964.07,0.00021917,2]
[385552902,1757892432555,-480.0,0.00021917,2]
[385552903,1757892432577,-480.0,0.00021917,2]
[385552904,1757892432598,-480.0,0.00021917,2]
[385552905,1757892432619,-480.0,0.00021917,2]
[385552906,1757892432640,-480.0,0.00021917,2]
[385552907,1757892432662,-340.88,0.00022,2]
[385552908,1757892432686,-465.91687764,0.00022191,3]
[385552909,1757892432707,-497.09,0.00022191,3]
[385552910,1757892432728,-1072.13,0.00022191,3]
[385552911,1757892432750,-1173.22,0.00022191,3]
[385552912,1757892432772,-717.7,0.00022191,3]
[385552913,1757892432795,-151.0,0.00022191,7]
[385552914,1757892432817,-929.31,0.00022191,3]
[385552915,1757892432840,-480.0,0.00022191,3]
[385552916,1757892432862,-480.0,0.00022191,3]
[385552917,1757892432885,-480.0,0.00022191,3]
[385552918,1757892432907,-417.69353006,0.00022191,3]
[385552919,1757892432928,-480.0,0.00022191,3]
[385552920,1757892432950,-480.0,0.00022191,3]
[385552921,1757892432973,-489.04,0.00022191,3]
[385552922,1757892432995,-794.94,0.00022191,3]
[385552923,1757892433016,-480.0,0.00022191,3]
[385552924,1757892433038,-480.0,0.00022191,3]
[385552925,1757892433059,-480.0,0.00022191,3]
[385552926,1757892433081,-480.0,0.00022191,3]
[385552927,1757892433102,-480.0,0.00022191,3]
[385552928,1757892433123,-581.11,0.00022191,3]
[385552929,1757892433145,-480.0,0.00022191,3]
[385552930,1757892433166,-2433.21,0.00022191,3]
[385552931,1757892433189,-990.98,0.00022191,3]
[385552932,1757892433213,-710.52,0.00022191,3]
[385552933,1757892433235,-480.0,0.00022191,3]
[385552934,1757892433256,-480.0,0.00022191,3]
[385552935,1757892433279,-1386.31,0.00022191,3]
[385552936,1757892433300,-1005.59,0.00022191,3]
[385552937,1757892433324,-2547.59,0.00022191,3]
[385552938,1757892433346,-480.0,0.00022191,3]
[385552939,1757892433368,-1964.07,0.00022191,3]
[385552940,1757892433392,-480.0,0.00022191,3]
[385552941,1757892433415,-480.0,0.00022191,3]
[385552942,1757892433437,-480.0,0.00022191,3]
[385552943,1757892433460,-480.0,0.00022191,3]
[385552944,1757892433620,-480.0,0.00022191,3]
[385552945,1757892433652,-168.0,0.00022232,2]
[385552946,1757892433674,-352.83,0.00022255,10]
[385552947,1757892433696,-294.03,0.00022255,10]
[385552948,1757892433718,-45190.75981089,0.00022265,2]
[385552949,1757892433839,-10135.61295047,0.00022265,2]
[385552950,1757892433862,-216.83169,0.00022265,7]
[385552951,1757892433883,-160.0,0.00022289,3]
[385552952,1757892433905,-388.96727005,0.00022327,2]
[385552953,1757892433926,-598.42562884,0.00022354,2]
[385552954,1757892433951,-300.0,0.00022354,20]
[385552955,1757892433975,-300.0,0.00022354,20]
[385552956,1757892433997,-300.0,0.00022354,20]
[385552957,1757892434021,-300.0,0.00022354,20]
[385552958,1757892434044,-300.0,0.00022354,20]
[385552959,1757892434069,-300.0,0.00022354,20]
[385552960,1757892434093,-300.0,0.00022354,20]
[385552961,1757892434117,-300.0,0.00022354,20]
[385552962,1757892434141,-300.0,0.00022354,20]
[385552963,1757892434165,-300.0,0.00022354,20]
[385552964,1757892434189,-300.0,0.00022354,20]
[385552965,1757892434218,-300.0,0.00022354,20]
[385552966,1757892434242,-300.0,0.00022354,20]
[385552967,1757892434266,-300.0,0.00022354,20]
[385552968,1757892434290,-300.0,0.00022354,20]
[385552969,1757892434314,-600.0,0.00022354,20]
[385552970,1757892434335,-5306.57500264,0.00022365,2]
[385552971,1757892447082,-480.0,0.00021917,2]
[385552972,1757892447104,-480.0,0.00021917,2]
[385552973,1757892447126,-847.27885267,0.00021917,2]
[385552974,1757892447149,-1435.93,0.00021917,2]
[385552975,1757892447170,-160.0,0.00021917,2]
[385552976,1757892447191,-233.1999649,0.00021917,2]
[385552977,1757892447212,-480.0,0.00022191,3]
[385552978,1757892447232,-480.0,0.00022191,3]
[385552979,1757892447255,-1435.93,0.00022191,3]
[385552980,1757892447276,-245.02,0.00022255,10]
[385552981,1757892447350,-11821.59178957,0.00022365,2]
[385552982,1757892447392,-157.0,0.0002239,3]
[385552983,1757892447414,-891.0,0.0002239,3]
[385552984,1757892447436,-186.0,0.0002239,3]
[385552985,1757892447456,-186.0,0.0002239,3]
[385552986,1757892447477,-157.0,0.0002239,3]
[385552987,1757892447498,-235.31691441,0.0002239,3]
[385552988,1757892447518,-157.0,0.0002239,3]
[385552989,1757892447547,-900.87391441,0.00022398,2]
[385552990,1757892447568,-3000.0,0.000224,2]
[385552991,1757892447594,-303.935,0.000224,2]
[385552992,1757892447615,-174.62,0.000224,2]
[385552993,1757892447636,-3000.0,0.0002241,2]
[385552994,1757892447658,-3000.0,0.0002242,2]
[385552995,1757892447679,-5621.702025,0.0002243,2]
[385552996,1757892447700,-480.0,0.00022465,3]
[385552997,1757892447722,-480.0,0.00022465,3]
[385552998,1757892447744,-480.0,0.00022465,3]
[385552999,1757892447765,-480.0,0.00022465,3]
[385553000,1757892447786,-480.0,0.00022465,3]
[385553001,1757892447807,-480.0,0.00022465,3]
[385553002,1757892447829,-480.0,0.00022465,3]